fUSD/lending_fUSD_20240825
["ID","MTS","AMOUNT","RATE_DAILY","PERIOD"]
[335923902,1724603441606,-5029.54,0.00010989,2]
[335923903,1724603441615,-500.0,0.00010989,2]
[335923904,1724603441624,-500.0,0.00010989,2]
[335923905,1724603441633,-5029.54,0.00010989,2]
[335923906,1724603441642,-5029.54,0.00010989,2]
[335923907,1724603441651,-512.75,0.00010989,2]
[335923908,1724603441661,-2420.89,0.00010989,2]
[335923909,1724603441672,-2420.89,0.00010989,2]
[335923910,1724603441681,-2420.89,0.00010989,2]
[335923911,1724603441690,-2420.89,0.00010989,2]
[335923912,1724603441699,-2420.89,0.00010989,2]
[335923913,1724603441708,-193.44,0.00010989,2]
[335923914,1724603441718,-500.0,0.00010989,2]
[335923915,1724603441726,-4044.87,0.00010989,2]
[335923916,1724603441736,-4044.87,0.00010989,2]
[335923917,1724603441745,-4044.87,0.00010989,2]
[335923918,1724603441758,-4044.87,0.00010989,2]
[335923919,1724603441767,-4044.87,0.00010989,2]
[335923920,1724603441778,-500.0,0.00010989,2]
[335923921,1724603441788,-500.0,0.00010989,2]
[335923922,1724603441798,-500.0,0.00010989,2]
[335923923,1724603441810,-500.0,0.00010989,2]
[335923924,1724603441820,-500.0,0.00010989,2]
[335923925,1724603441829,-500.0,0.00010989,2]
[335923926,1724603441839,-500.0,0.00010989,2]
[335923927,1724603441849,-500.0,0.00010989,2]
[335923928,1724603441858,-1523.53,0.00010989,2]
[335923929,1724603441868,-1523.53,0.00010989,2]
[335923930,1724603441878,-1523.53,0.00010989,2]
[335923931,1724603441887,-500.0,0.00010989,2]
[335923932,1724603441897,-1523.53,0.00010989,2]
[335923933,1724603441906,-500.0,0.00010989,2]
[335923934,1724603441916,-1523.53,0.00010989,2]
[335923935,1724603441925,-500.0,0.00010989,2]
[335923936,1724603441935,-500.0,0.00010989,2]
[335923937,1724603441945,-500.0,0.00010989,2]
[335923938,1724603441954,-500.0,0.00010989,2]
[335923939,1724603441964,-500.0,0.00010989,2]
[335923940,1724603441974,-500.0,0.00010989,2]
[335923941,1724603441984,-500.0,0.00010989,2]
[335923942,1724603441993,-500.0,0.00010989,2]
[335923943,1724603442003,-500.0,0.00010989,2]
[335923944,1724603442012,-500.0,0.00010989,2]
[335923945,1724603442021,-500.0,0.00010989,2]
[335923946,1724603442031,-567.93,0.00010989,2]
[335923947,1724603442040,-500.0,0.00010989,2]
[335923948,1724603442049,-500.0,0.00010989,2]
[335923949,1724603442058,-567.93,0.00010989,2]
[335923950,1724603442068,-500.0,0.00010989,2]
[335923951,1724603442077,-567.93,0.00010989,2]
[335923952,1724603442087,-500.0,0.00010989,2]
[335923953,1724603442097,-567.93,0.00010989,2]
[335923954,1724603442106,-567.93,0.00010989,2]
[335923955,1724603442116,-1155.82,0.00010989,2]
[335923956,1724603442125,-1155.82,0.00010989,2]
[335923957,1724603442134,-1155.82,0.00010989,2]
[335923958,1724603442144,-1155.82,0.00010989,2]
[335923959,1724603442153,-1155.82,0.00010989,2]
[335923960,1724603442162,-2203.46,0.00010989,2]
[335923961,1724603442173,-2203.46,0.00010989,2]
[335923962,1724603442182,-2203.46,0.00010989,2]
[335923963,1724603442192,-2203.46,0.00010989,2]
[335923964,1724603442201,-2203.46,0.00010989,2]
[335923965,1724603442211,-500.0,0.00010989,2]
[335923966,1724603442220,-500.0,0.00010989,2]
[335923967,1724603442229,-500.0,0.00010989,2]
[335923968,1724603442239,-500.0,0.00010989,2]
[335923969,1724603442249,-748.4,0.00010989,2]
[335923970,1724603442258,-500.0,0.00010989,2]
[335923971,1724603442268,-748.4,0.00010989,2]
[335923972,1724603442277,-748.4,0.00010989,2]
[335923973,1724603442287,-748.4,0.00010989,2]
[335923974,1724603442297,-2161.76,0.00010989,2]
[335923975,1724603442306,-748.4,0.00010989,2]
[335923976,1724603442316,-2161.76,0.00010989,2]
[335923977,1724603442326,-2161.76,0.00010989,2]
[335923978,1724603442334,-2161.76,0.00010989,2]
[335923979,1724603442344,-2161.76,0.00010989,2]
[335923980,1724603442354,-500.0,0.00010989,2]
[335923981,1724603442363,-500.0,0.00010989,2]
[335923982,1724603442373,-558.52,0.00010989,2]
[335923983,1724603442382,-500.0,0.00010989,2]
[335923984,1724603442392,-500.0,0.00010989,2]
[335923985,1724603442402,-500.0,0.00010989,2]
[335923986,1724603442411,-500.0,0.00010989,2]
[335923987,1724603442421,-500.0,0.00010989,2]
[335923988,1724603442431,-500.0,0.00010989,2]
[335923989,1724603442440,-500.0,0.00010989,2]
[335923990,1724603442451,-500.0,0.00010989,2]
[335923991,1724603442462,-500.0,0.00010989,2]
[335923992,1724603442471,-500.0,0.00010989,2]
[335923993,1724603442480,-287.7,0.00010989,2]
[335923994,1724603442491,-500.0,0.00010989,2]
[335923995,1724603442501,-500.0,0.00010989,2]
[335923996,1724603442510,-709.28,0.00010989,2]
[335923997,1724603442519,-709.28,0.00010989,2]
[335923998,1724603442530,-709.28,0.00010989,2]
[335923999,1724603442539,-1182.6,0.00010989,2]
[335924000,1724603442549,-709.28,0.00010989,2]
[335924001,1724603442559,-1182.6,0.00010989,2]
[335924002,1724603442568,-500.0,0.00010989,2]
[335924003,1724603442578,-709.28,0.00010989,2]
[335924004,1724603442587,-1182.6,0.00010989,2]
[335924005,1724603442597,-591.08,0.00010989,2]
[335924006,1724603442607,-1182.6,0.00010989,2]
[335924007,1724603442617,-591.08,0.00010989,2]
[335924008,1724603442626,-1182.6,0.00010989,2]
[335924009,1724603442635,-591.08,0.00010989,2]
[335924010,1724603442645,-591.08,0.00010989,2]
[335924011,1724603442654,-591.08,0.00010989,2]
[335924012,1724603442663,-500.0,0.00010989,2]
[335924013,1724603442674,-500.0,0.00010989,2]
[335924014,1724603442683,-500.0,0.00010989,2]
[335924015,1724603442693,-500.0,0.00010989,2]
[335924016,1724603442702,-500.0,0.00010989,2]
[335924018,1724603442712,-882.75,0.00010989,2]
[335924020,1724603442722,-500.0,0.00010989,2]
[335924021,1724603442732,-882.75,0.00010989,2]
[335924022,1724603442741,-500.0,0.00010989,2]
[335924023,1724603442865,-500.0,0.00010989,2]
[335924024,1724603442874,-882.75,0.00010989,2]
[335924026,1724603442883,-500.0,0.00010989,2]
[335924027,1724603442892,-500.0,0.00010989,2]
[335924028,1724603442902,-882.75,0.00010989,2]
[335924029,1724603442912,-576.63,0.00010989,2]
[335924030,1724603442922,-882.75,0.00010989,2]
[335924031,1724603442931,-500.0,0.00010989,2]
[335924032,1724603442941,-500.0,0.00010989,2]
[335924033,1724603442950,-500.0,0.00010989,2]
[335924034,1724603442961,-525.0,0.0001099,2]
[335924035,1724603442971,-348553.91122937,0.0001099,3]
[335924036,1724603442981,-437997.45417641,0.0001099,3]
[335924038,1724603443205,-1284.35585131,0.0001099,3]
[335924040,1724603443216,-876.72999162,0.0001099,3]
[335924042,1724603443228,-2194.55656055,0.0001099,3]
[335924045,1724603443239,-5236.44719773,0.0001099,3]
[335924051,1724603443260,-500.0,0.00010989,2]
[335924053,1724603443269,-2848.64538502,0.0001099,3]
[335924057,1724603443280,-2000.0,0.0001099,3]
[335924061,1724603443291,-428.85012758,0.0001099,3]
[335924063,1724603443302,-594.67731106,0.0001099,3]
[335924064,1724603443313,-251.35461498,0.0001099,3]
[335924065,1724603443335,-1205.0,0.00010753,2]
[335924066,1724603443345,-1211.0,0.0001099,3]
[335924067,1724603443357,-4693.95357535,0.0001099,3]
[335924068,1724603443606,-268.2755,0.00010888,2]
[335924069,1724603443616,-500.0,0.00010986,2]
[335924070,1724603443625,-500.0,0.00010986,2]
[335924071,1724603443634,-296.86,0.00010988,2]
[335924072,1724603443644,-500.0,0.00010989,2]
[335924073,1724603443653,-270.71284695,0.0001099,3]
[335924074,1724603443664,-1257.43565756,0.0001099,3]
[335924075,1724603443676,-297.48711185,0.0001099,3]
[335924076,1724603443687,-4985.0801,0.0001099,3]
[335924077,1724603443707,-1575.43818511,0.0001099,3]
[335924078,1724603443739,-107990.58072076,0.0001099,3]
[335924079,1724603443748,-1159.9576971,0.0001099,2]
[335924080,1724603443758,-15633.33113598,0.0001099,3]
[335924081,1724603443769,-531.06930366,0.0001099,3]
[335924082,1724603443971,-239.13801641,0.00010988,2]
[335924083,1724603443981,-38.09198359,0.0001099,3]
[335924084,1724603443992,-2110.66568425,0.0001099,3]
[335924085,1724603444109,-150.0,0.00010959,2]
[335924086,1724603444119,-500.0,0.00010986,2]
[335924087,1724603444128,-468.97,0.00010988,2]
[335924088,1724603444138,-7360.66585047,0.0001099,3]
[335924102,1724603446127,-1540.0000006,0.0001099,3]
[335924103,1724603446138,-6006.0,0.0001099,3]
[335924104,1724603446276,-260.0,0.00010986,2]
[335924105,1724603446586,-240.0,0.00010986,2]
[335924106,1724603446597,-396.28681071,0.00010988,2]
[335924107,1724603446610,-12.16540857,0.0001099,3]
[335924108,1724603605924,633.37,0.00024657,120]
[335924109,1724603606195,633.37,0.00025342,120]
[335924110,1724603606468,633.37,0.00026027,120]
[335924111,1724603606762,633.37,0.00026712,120]
[335924112,1724603623370,200.0,0.00027,120]
[335924114,1724603641056,200.0,0.00025,60]
[335924115,1724603739650,247.96,9.931e-05,2]
[335924116,1724603784500,4321.66459626,9.931e-05,2]
[335924117,1724603798304,23900.0,9.921e-05,2]
[335924118,1724603833848,302.4,9.909e-05,2]
[335924119,1724603840475,154.4,7.172e-05,2]
[335924120,1724603877024,256.87,8.219e-05,2]
[335924121,1724603912762,155.0,0.0001,2]
[335924122,1724603938414,299.50985244,0.0001,2]
[335924123,1724603950590,500.0,0.0001,2]
[335924124,1724603962375,500.0,0.0001,2]
[335924125,1724603988257,154.57,9.9e-05,2]
[335924126,1724604142452,9189.64,9.868e-05,2]
[335924127,1724604242436,247.96,9.863e-05,2]
[335924128,1724604249583,500.0,0.00027,120]
[335924129,1724604251437,500.0,0.00027,120]
[335924130,1724604252704,500.0,0.00027,120]
[335924131,1724604254214,500.0,0.00027,120]
[335924132,1724604255219,500.0,0.00027,120]
[335924133,1724604265863,500.0,0.00027,120]
[335924134,1724604267054,500.0,0.00027,120]
[335924135,1724604268156,500.0,0.00027,120]
[335924136,1724604269023,500.0,0.00027,120]
[335924137,1724604269938,500.0,0.00027,120]
[335924138,1724604270832,500.0,0.00027,120]
[335924139,1724604271750,500.0,0.00027,120]
[335924140,1724604272533,500.0,0.00027,120]
[335924141,1724604273920,500.0,0.00027,120]
[335924142,1724604274400,500.0,0.00027,120]
[335924143,1724604280799,500.0,0.00027,120]
[335924144,1724604281682,500.0,0.00027,120]
[335924145,1724604282679,500.0,0.00027,120]
[335924146,1724604283630,500.0,0.00027,120]
[335924147,1724604284515,500.0,0.00027,120]
[335924148,1724604285389,500.0,0.00027,120]
[335924149,1724604286326,500.0,0.00027,120]
[335924150,1724604287280,500.0,0.00027,120]
[335924151,1724604288159,500.0,0.00027,120]
[335924152,1724604289038,500.0,0.00027,120]
[335924153,1724604289881,500.0,0.00027,120]
[335924154,1724604290773,500.0,0.00027,120]
[335924155,1724604291678,500.0,0.00027,120]
[335924156,1724604292684,500.0,0.00027,120]
[335924157,1724604298512,500.0,0.00027,120]
[335924158,1724604299477,500.0,0.00027,120]
[335924159,1724604300383,500.0,0.00027,120]
[335924160,1724604301340,500.0,0.00027,120]
[335924161,1724604302236,500.0,0.00027,120]
[335924162,1724604303228,500.0,0.00027,120]
[335924163,1724604304474,500.0,0.00027,120]
[335924164,1724604305297,500.0,0.00027,120]
[335924165,1724604306206,500.0,0.00027,120]
[335924166,1724604307132,500.0,0.00027,120]
[335924167,1724604308309,500.0,0.00027,120]
[335924168,1724604313155,1050.0,0.0001,2]
[335924169,1724604316313,13482.02,9.842e-05,2]
[335924170,1724604316343,500.0,0.00027,120]
[335924171,1724604317976,500.0,0.00027,120]
[335924172,1724604319236,500.0,0.00027,120]
[335924173,1724604320230,500.0,0.00027,120]
[335924174,1724604323940,758.08,9.848e-05,2]
[335924175,1724604329524,413.8253142,0.00027,120]
[335924176,1724604356803,624.89666439,0.00027,120]
[335924177,1724604391443,266.89184508,9.997e-05,2]
[335924178,1724604400552,244.02,8.219e-05,2]
[335924179,1724604450543,1397.45840494,0.00010009,2]
[335924180,1724604482636,433.13438347,0.00010009,2]
[335924181,1724604495218,1050.0,9.926e-05,2]
[335924182,1724604497122,1074.88726643,0.00010009,2]
[335924183,1724604500409,500.0,0.00010009,2]
[335924184,1724604501483,154.57,9.862e-05,2]
[335924185,1724604503636,265.57135538,0.00010009,2]
[335924186,1724604504610,444.21332815,0.00010009,2]
[335924188,1724604531584,2110.69052521,0.00010009,2]
[335924189,1724604531608,278.12517896,0.00010009,2]
[335924196,1724604562311,1741.37556008,0.00010009,2]
[335924201,1724604594227,2837.0,0.00010009,2]
[335924202,1724604614395,394.58941796,0.00010009,2]
[335924203,1724604614419,105.41058204,0.00010009,2]
[335924204,1724604619545,316.20655906,0.00010009,2]
[335924205,1724604621705,159.56617666,0.00010009,2]
[335924206,1724604622054,164.37927092,0.00010009,2]
[335924207,1724604623156,2606.62984464,0.00010009,2]
[335924208,1724604626703,2505.40041835,0.00010009,2]
[335924209,1724604629644,419.50258882,0.00010009,2]
[335924215,1724604631918,-355.41834579,0.00010025,2]
[335924216,1724604631930,-233.58165421,0.00010025,2]
[335924217,1724604631940,-300.0,0.00010025,2]
[335924218,1724604631949,-300.0,0.00010025,2]
[335924219,1724604631959,-155.51506615,0.00010026,2]
[335924220,1724604631968,-439.82643007,0.00010026,2]
[335924221,1724604631978,-287.17126109,0.00010026,2]
[335924222,1724604631987,-342.47692814,0.00010026,2]
[335924223,1724604631996,-155.0,0.00010026,2]
[335924224,1724604632005,-365.80180037,0.00010026,2]
[335924225,1724604632014,-260.39879964,0.00010026,2]
[335924226,1724604632023,-298.80085922,0.00010097,2]
[335924227,1724604632032,-600.74422133,0.00010097,2]
[335924228,1724604632042,-244.02,0.00010468,2]
[335924229,1724604632051,-150.0,0.00010504,2]
[335924230,1724604632060,-150.0,0.00010548,2]
[335924231,1724604632070,-499.99,0.00010566,2]
[335924232,1724604632079,-528.84,0.00010698,2]
[335924233,1724604632088,-516.81257679,0.00010699,2]
[335924234,1724604632097,-1071.39214293,0.00010719,2]
[335924235,1724604632117,-428.60785707,0.00010719,2]
[335924236,1724604632126,-150.0,0.00010732,2]
[335924237,1724604632136,-1500.0,0.00010742,2]
[335924238,1724604632146,-150.0,0.00010743,2]
[335924242,1724604632320,-209.44699376,0.00010744,2]
[335924243,1724604632330,-150.0,0.00010746,2]
[335924244,1724604632339,-150.0,0.0001075,2]
[335924245,1724604632349,-150.0,0.00010759,2]
[335924246,1724604632358,-150.0,0.00010769,2]
[335924247,1724604632367,-150.0,0.00010778,2]
[335924248,1724604632376,-150.0,0.00010787,2]
[335924249,1724604632386,-203.24854396,0.00010791,2]
[335924250,1724604632395,-150.0,0.00010802,2]
[335924251,1724604632404,-150.0,0.00010802,2]
[335924252,1724604632415,-150.0,0.00010805,2]
[335924253,1724604632424,-150.0,0.00010816,2]
[335924254,1724604632434,-10244.745,0.00010816,2]
[335924255,1724604632443,-150.0,0.00010835,2]
[335924256,1724604632452,-150.0,0.00010837,2]
[335924257,1724604632462,-1500.0,0.00010851,2]
[335924258,1724604632471,-150.0,0.00010853,2]
[335924259,1724604632481,-1529.332,0.00010856,2]
[335924260,1724604632490,-150.0,0.00010856,2]
[335924261,1724604632499,-13452.0,0.00010856,2]
[335924262,1724604632509,-270.0311,0.00010858,2]
[335924263,1724604632518,-9886.74398254,0.00010861,2]
[335924264,1724604632527,-1236.12413683,0.0001087,2]
[335924265,1724604632537,-150.0,0.00010874,2]
[335924266,1724604632547,-1500.0,0.00010875,2]
[335924267,1724604632556,-1546.5954,0.0001088,2]
[335924268,1724604632565,-2500.0,0.00010887,2]
[335924269,1724604632575,-178.37126086,0.00010888,2]
[335924270,1724604632584,-3058.3099,0.00010888,2]
[335924271,1724604632593,-213.8629983,0.0001089,2]
[335924272,1724604632602,-346.40351478,0.00010891,2]
[335924273,1724604632611,-207.78228054,0.00010899,2]
[335924274,1724604632622,-202.94854155,0.00010899,2]
[335924275,1724604632631,-202.94854152,0.00010899,2]
[335924276,1724604632641,-202.94854152,0.00010899,2]
[335924277,1724604632650,-202.94854152,0.00010899,2]
[335924278,1724604632660,-202.94854152,0.00010899,2]
[335924279,1724604632670,-202.94854152,0.00010899,2]
[335924280,1724604632679,-202.94854152,0.00010899,2]
[335924281,1724604632688,-202.94854152,0.00010899,2]
[335924282,1724604632697,-202.94854152,0.00010899,2]
[335924283,1724604632706,-202.94854152,0.000109,2]
[335924284,1724604632716,-150.0,0.00010926,2]
[335924285,1724604632725,-150.0,0.00010931,2]
[335924286,1724604632734,-150.0,0.00010936,2]
[335924287,1724604632744,-155.23299543,0.00010949,2]
[335924288,1724604632753,-250.0,0.00010959,2]
[335924289,1724604632762,-1500.0,0.00010959,2]
[335924290,1724604632771,-151.3,0.00010959,2]
[335924291,1724604632781,-150.0,0.00010973,2]
[335924292,1724604632790,-150.0,0.0001098,2]
[335924293,1724604632799,-150.86,0.0001098,2]
[335924294,1724604632808,-7125.38326111,0.00010981,2]
[335924295,1724604632820,-13902.2274293,0.00010983,2]
[335924296,1724604632830,-53882.0391477,0.00010983,2]
[335924297,1724604632840,-500.0,0.00010986,2]
[335924298,1724604632849,-500.0,0.00010986,2]
[335924299,1724604632858,-500.0,0.00010986,2]
[335924300,1724604632870,-500.0,0.00010986,2]
[335924301,1724604632879,-500.0,0.00010986,2]
[335924302,1724604632888,-637.84,0.00010986,2]
[335924303,1724604632897,-500.0,0.00010986,2]
[335924304,1724604632906,-500.0,0.00010986,2]
[335924305,1724604632916,-500.0,0.00010986,2]
[335924306,1724604632925,-500.0,0.00010986,2]
[335924307,1724604632935,-500.0,0.00010986,2]
[335924308,1724604632944,-500.0,0.00010986,2]
[335924309,1724604632954,-500.0,0.00010986,2]
[335924310,1724604632963,-306.53829178,0.00010986,2]
[335924311,1724604632972,-500.0,0.00010986,2]
[335924312,1724604632981,-500.0,0.00010986,2]
[335924313,1724604632990,-500.0,0.00010986,2]
[335924314,1724604633000,-185.41,0.00010986,2]
[335924315,1724604633010,-500.0,0.00010987,2]
[335924316,1724604633019,-500.0,0.00010987,2]
[335924317,1724604633028,-500.0,0.00010987,2]
[335924318,1724604633037,-500.0,0.00010987,2]
[335924319,1724604633047,-500.0,0.00010987,2]
[335924320,1724604633056,-500.0,0.00010987,2]
[335924321,1724604633065,-500.0,0.00010987,2]
[335924322,1724604633074,-500.0,0.00010987,2]
[335924323,1724604633084,-500.0,0.00010987,2]
[335924324,1724604633093,-500.0,0.00010987,2]
[335924325,1724604633102,-500.0,0.00010987,2]
[335924326,1724604633111,-500.0,0.00010987,2]
[335924327,1724604633120,-627.2,0.00010987,2]
[335924328,1724604633130,-500.0,0.00010987,2]
[335924329,1724604633139,-500.0,0.00010987,2]
[335924330,1724604633148,-500.0,0.00010987,2]
[335924331,1724604633157,-500.0,0.00010987,2]
[335924332,1724604633167,-500.0,0.00010987,2]
[335924333,1724604633176,-500.0,0.00010987,2]
[335924334,1724604633186,-500.0,0.00010987,2]
[335924335,1724604633196,-500.0,0.00010987,2]
[335924336,1724604633205,-500.0,0.00010987,2]
[335924337,1724604633215,-500.0,0.00010987,2]
[335924338,1724604633224,-500.0,0.00010987,2]
[335924339,1724604633233,-500.0,0.00010987,2]
[335924340,1724604633243,-541.51,0.00010987,2]
[335924341,1724604633253,-500.0,0.00010987,2]
[335924342,1724604633262,-500.0,0.00010987,2]
[335924343,1724604633271,-500.0,0.00010987,2]
[335924344,1724604633281,-500.0,0.00010987,2]
[335924345,1724604633291,-509.26,0.00010987,2]
[335924346,1724604633300,-564.91,0.00010987,2]
[335924347,1724604633309,-500.0,0.00010987,2]
[335924348,1724604633319,-500.0,0.00010987,2]
[335924349,1724604633328,-500.0,0.00010987,2]
[335924350,1724604633337,-500.0,0.00010987,2]
[335924351,1724604633347,-500.0,0.00010987,2]
[335924352,1724604633356,-500.0,0.00010987,2]
[335924353,1724604633365,-500.0,0.00010987,2]
[335924354,1724604633375,-500.0,0.00010987,2]
[335924355,1724604633384,-500.0,0.00010987,2]
[335924356,1724604633394,-500.0,0.00010987,2]
[335924357,1724604633403,-891.75,0.00010987,2]
[335924358,1724604633413,-500.0,0.00010987,2]
[335924359,1724604633422,-500.0,0.00010987,2]
[335924360,1724604633432,-3270.42,0.00010987,2]
[335924361,1724604633442,-500.0,0.00010987,2]
[335924362,1724604633452,-500.0,0.00010987,2]
[335924363,1724604633462,-500.0,0.00010987,2]
[335924364,1724604633472,-1564.32,0.00010987,2]
[335924365,1724604633482,-500.0,0.00010987,2]
[335924366,1724604633492,-565.73,0.00010987,2]
[335924367,1724604633501,-500.0,0.00010987,2]
[335924368,1724604633511,-500.0,0.00010987,2]
[335924369,1724604633520,-500.0,0.00010987,2]
[335924370,1724604633530,-500.0,0.00010987,2]
[335924371,1724604633539,-722.84,0.00010987,2]
[335924372,1724604633549,-500.0,0.00010987,2]
[335924373,1724604633558,-500.78386799,0.00010987,2]
[335924374,1724604633567,-500.0,0.00010987,2]
[335924375,1724604633577,-2696.58,0.00010987,2]
[335924376,1724604633586,-583.284929,0.00010987,2]
[335924377,1724604633596,-500.0,0.00010987,2]
[335924378,1724604633605,-1815.67,0.00010987,2]
[335924379,1724604633615,-500.0,0.00010987,2]
[335924380,1724604633624,-500.0,0.00010987,2]
[335924381,1724604633634,-500.0,0.00010987,2]
[335924382,1724604633643,-1468.97,0.00010987,2]
[335924383,1724604633652,-1142.64,0.00010987,2]
[335924384,1724604633662,-500.0,0.00010987,2]
[335924385,1724604633671,-500.0,0.00010987,2]
[335924386,1724604633680,-866.87,0.00010987,2]
[335924387,1724604633690,-500.0,0.00010987,2]
[335924388,1724604633699,-1621.32,0.00010987,2]
[335924389,1724604633709,-500.0,0.00010987,2]
[335924390,1724604633718,-516.65,0.00010987,2]
[335924391,1724604633727,-837.68,0.00010987,2]
[335924392,1724604633738,-500.0,0.00010987,2]
[335924393,1724604633747,-500.0,0.00010987,2]
[335924394,1724604633758,-625.28,0.00010987,2]
[335924395,1724604633768,-500.0,0.00010987,2]
[335924396,1724604633777,-500.0,0.00010987,2]
[335924397,1724604633787,-500.0,0.00010987,2]
[335924398,1724604633796,-500.0,0.00010988,2]
[335924399,1724604633805,-500.0,0.00010988,2]
[335924400,1724604633815,-500.0,0.00010988,2]
[335924401,1724604633828,-500.0,0.00010988,2]
[335924402,1724604633838,-500.0,0.00010988,2]
[335924403,1724604633847,-500.0,0.00010988,2]
[335924404,1724604633856,-500.0,0.00010988,2]
[335924405,1724604633866,-500.0,0.00010988,2]
[335924406,1724604633875,-500.0,0.00010988,2]
[335924407,1724604633884,-500.0,0.00010988,2]
[335924408,1724604633893,-500.0,0.00010988,2]
[335924409,1724604633903,-500.0,0.00010988,2]
[335924410,1724604633912,-500.0,0.00010988,2]
[335924411,1724604633922,-500.0,0.00010988,2]
[335924412,1724604633931,-500.0,0.00010988,2]
[335924413,1724604633941,-500.0,0.00010988,2]
[335924414,1724604633950,-500.0,0.00010988,2]
[335924415,1724604633960,-442.24,0.00010988,2]
[335924416,1724604633970,-500.0,0.00010988,2]
[335924417,1724604633980,-500.0,0.00010988,2]
[335924418,1724604633990,-500.0,0.00010988,2]
[335924419,1724604633999,-500.0,0.00010988,2]
[335924420,1724604634009,-500.0,0.00010988,2]
[335924421,1724604634018,-500.0,0.00010988,2]
[335924422,1724604634028,-648.9,0.00010988,2]
[335924423,1724604634037,-500.0,0.00010988,2]
[335924424,1724604634047,-500.0,0.00010988,2]
[335924425,1724604634056,-500.0,0.00010988,2]
[335924426,1724604634065,-500.0,0.00010988,2]
[335924427,1724604634075,-500.0,0.00010988,2]
[335924428,1724604634084,-732.22,0.00010988,2]
[335924429,1724604634094,-500.0,0.00010988,2]
[335924430,1724604634103,-500.0,0.00010988,2]
[335924431,1724604634112,-500.0,0.00010988,2]
[335924432,1724604634122,-500.0,0.00010988,2]
[335924433,1724604634132,-500.0,0.00010988,2]
[335924434,1724604634141,-1401.3,0.00010988,2]
[335924435,1724604634150,-500.0,0.00010988,2]
[335924436,1724604634159,-500.0,0.00010988,2]
[335924437,1724604634169,-500.0,0.00010988,2]
[335924438,1724604634179,-500.0,0.00010988,2]
[335924439,1724604634188,-500.0,0.00010988,2]
[335924440,1724604634197,-16715.05,0.00010988,2]
[335924441,1724604634207,-541.51,0.00010988,2]
[335924442,1724604634216,-500.0,0.00010988,2]
[335924443,1724604634226,-500.0,0.00010988,2]
[335924444,1724604634235,-500.0,0.00010988,2]
[335924445,1724604634244,-500.0,0.00010988,2]
[335924446,1724604634253,-500.0,0.00010988,2]
[335924447,1724604634263,-500.0,0.00010988,2]
[335924448,1724604634272,-500.0,0.00010988,2]
[335924449,1724604634281,-500.0,0.00010988,2]
[335924450,1724604634291,-500.0,0.00010988,2]
[335924451,1724604634300,-601.02,0.00010988,2]
[335924452,1724604634310,-500.0,0.00010988,2]
[335924453,1724604634320,-500.0,0.00010988,2]
[335924454,1724604634329,-500.0,0.00010988,2]
[335924455,1724604634339,-500.0,0.00010988,2]